[Event "December 12 Early 2023"]
[Site "https://www.chess.com"]
[Date "2023.12.12"]
[Round "10"]
[White "Semenova, Alina"]
[Black "Belov, Alexei"]
[Result "1-0"]
[Board "72"]
[TimeControl "180+1"]
[WhiteFideId "24113875"]
[BlackFideId "4128206"]
[WhiteElo "2236"]
[BlackElo "2578"]
[WhiteTeam "RUS"]
[BlackTeam "RUS"]
[WhiteClock "0:00:03"]
[BlackClock "0:00:12"]

1. e4 {[%clk 0:02:59]}  e6 {[%clk 0:03:00]} 2. d4 {[%clk 0:02:57]}  d5 {[%clk 0:03:00]} 3. exd5 {[%clk 0:02:57]}  exd5 {[%clk 0:03:00]} 4. Nf3 {[%clk 0:02:57]}  Nf6 {[%clk 0:03:00]} 5. Bd3 {[%clk 0:02:58]}  c5 {[%clk 0:03:01]} 6. dxc5 {[%clk 0:02:57]}  Bxc5 {[%clk 0:03:01]} 7. O-O {[%clk 0:02:58]}  O-O {[%clk 0:03:01]} 8. Nbd2 {[%clk 0:02:58]}  Nc6 {[%clk 0:03:01]} 9. Nb3 {[%clk 0:02:58]}  Bb6 {[%clk 0:03:01]} 10. h3 {[%clk 0:02:58]}  h6 {[%clk 0:02:59]} 11. c3 {[%clk 0:02:57]}  Re8 {[%clk 0:02:57]} 12. Bf4 {[%clk 0:02:56]}  Ne4 {[%clk 0:02:49]} 13. Nbd4 {[%clk 0:02:51]}  Qf6 {[%clk 0:02:37]} 14. Be3 {[%clk 0:02:49]}  Bd7 {[%clk 0:02:31]} 15. Re1 {[%clk 0:02:36]}  Rad8 {[%clk 0:02:30]} 16. Qc2 {[%clk 0:02:30]}  Rc8 {[%clk 0:02:19]} 17. Nxc6 {[%clk 0:02:24]}  Bxc6 {[%clk 0:01:55]} 18. Bxb6 {[%clk 0:02:20]}  axb6 {[%clk 0:01:55]} 19. Nd4 {[%clk 0:02:20]}  Nc5 {[%clk 0:01:34]} 20. Bf5 {[%clk 0:02:11]}  Rcd8 {[%clk 0:01:33]} 21. Rad1 {[%clk 0:01:47]}  g6 {[%clk 0:01:30]} 22. Bd3 {[%clk 0:01:46]}  Rc8 {[%clk 0:01:21]} 23. Qd2 {[%clk 0:01:39]}  Ne4 {[%clk 0:01:12]} 24. Bxe4 {[%clk 0:01:28]}  dxe4 {[%clk 0:01:12]} 25. Qxh6 {[%clk 0:01:27]}  Bd5 {[%clk 0:01:01]} 26. a3 {[%clk 0:01:21]}  Re5 {[%clk 0:00:57]} 27. Qe3 {[%clk 0:00:52]}  Bc4 {[%clk 0:00:57]} 28. Nf3 {[%clk 0:00:45]}  Re7 {[%clk 0:00:47]} 29. Nd2 {[%clk 0:00:41]}  Bd3 {[%clk 0:00:42]} 30. f3 {[%clk 0:00:39]}  Rce8 {[%clk 0:00:35]} 31. fxe4 {[%clk 0:00:34]}  Bc2 {[%clk 0:00:35]} 32. Rc1 {[%clk 0:00:31]}  Ba4 {[%clk 0:00:32]} 33. Qd4 {[%clk 0:00:20]}  Qg5 {[%clk 0:00:28]} 34. Nf3 {[%clk 0:00:20]}  Qg3 {[%clk 0:00:27]} 35. Qxa4 {[%clk 0:00:19]}  f5 {[%clk 0:00:26]} 36. Qc4+ {[%clk 0:00:18]}  Kh7 {[%clk 0:00:27]} 37. Qf1 {[%clk 0:00:15]}  fxe4 {[%clk 0:00:26]} 38. Nd4 {[%clk 0:00:15]}  e3 {[%clk 0:00:24]} 39. Qf3 {[%clk 0:00:13]}  Qc7 {[%clk 0:00:22]} 40. Re2 {[%clk 0:00:13]}  Rf7 {[%clk 0:00:22]} 41. Qg4 {[%clk 0:00:12]}  Qe5 {[%clk 0:00:20]} 42. Rce1 {[%clk 0:00:12]}  Qf6 {[%clk 0:00:20]} 43. Kh2 {[%clk 0:00:09]}  Qe5+ {[%clk 0:00:20]} 44. Qg3 {[%clk 0:00:09]}  Qf6 {[%clk 0:00:19]} 45. Rxe3 {[%clk 0:00:09]}  Rxe3 {[%clk 0:00:20]} 46. Qxe3 {[%clk 0:00:09]}  Qd6+ {[%clk 0:00:19]} 47. Qe5 {[%clk 0:00:10]}  Qd8 {[%clk 0:00:17]} 48. Re4 {[%clk 0:00:09]}  Qf6 {[%clk 0:00:16]} 49. Qxf6 {[%clk 0:00:09]}  Rxf6 {[%clk 0:00:17]} 50. Re7+ {[%clk 0:00:09]}  Kh6 {[%clk 0:00:17]} 51. Rxb7 {[%clk 0:00:09]}  Rd6 {[%clk 0:00:17]} 52. a4 {[%clk 0:00:09]}  Kg5 {[%clk 0:00:17]} 53. b4 {[%clk 0:00:09]}  Kf4 {[%clk 0:00:17]} 54. a5 {[%clk 0:00:09]}  bxa5 {[%clk 0:00:18]} 55. bxa5 {[%clk 0:00:10]}  Ra6 {[%clk 0:00:19]} 56. Rb5 {[%clk 0:00:09]}  Ke4 {[%clk 0:00:17]} 57. Nb3 {[%clk 0:00:08]}  Ra7 {[%clk 0:00:15]} 58. a6 {[%clk 0:00:07]}  Kd3 {[%clk 0:00:15]} 59. Nc5+ {[%clk 0:00:07]}  Kc4 {[%clk 0:00:16]} 60. Rb7 {[%clk 0:00:07]}  Ra8 {[%clk 0:00:15]} 61. Ne4 {[%clk 0:00:05]}  Rxa6 {[%clk 0:00:15]} 62. g4 {[%clk 0:00:04]}  Kd3 {[%clk 0:00:12]} 63. Nc5+ {[%clk 0:00:03]} 1-0

[Event "December 12 Early 2023"]
[Site "https://www.chess.com"]
[Date "2023.12.12"]
[Round "10"]
[White "Estrada Nieto, Julian"]
[Black "Golubev, Mikhail"]
[Result "1-0"]
[Board "75"]
[TimeControl "180+1"]
[WhiteFideId "5101018"]
[BlackFideId "14100983"]
[WhiteElo "2526"]
[BlackElo "2635"]
[WhiteTeam "ESP"]
[BlackTeam "UKR"]
[WhiteClock "0:00:07"]
[BlackClock "0:00:00"]

1. e4 {[%clk 0:03:00]}  c5 {[%clk 0:02:59]} 2. Nf3 {[%clk 0:03:01]}  d6 {[%clk 0:02:59]} 3. Bb5+ {[%clk 0:03:00]}  Bd7 {[%clk 0:02:59]} 4. Bxd7+ {[%clk 0:03:00]}  Qxd7 {[%clk 0:02:59]} 5. O-O {[%clk 0:03:00]}  Nf6 {[%clk 0:02:59]} 6. Qe2 {[%clk 0:03:00]}  Nc6 {[%clk 0:02:55]} 7. c3 {[%clk 0:03:01]}  e6 {[%clk 0:02:35]} 8. d4 {[%clk 0:02:59]}  d5 {[%clk 0:02:25]} 9. e5 {[%clk 0:02:54]}  Ne4 {[%clk 0:02:25]} 10. Nbd2 {[%clk 0:02:54]}  Nxd2 {[%clk 0:02:23]} 11. Bxd2 {[%clk 0:02:54]}  Be7 {[%clk 0:02:11]} 12. Rad1 {[%clk 0:02:43]}  cxd4 {[%clk 0:02:08]} 13. cxd4 {[%clk 0:02:43]}  h6 {[%clk 0:02:04]} 14. a3 {[%clk 0:02:17]}  O-O {[%clk 0:01:50]} 15. g3 {[%clk 0:02:15]}  a5 {[%clk 0:01:42]} 16. Kg2 {[%clk 0:02:14]}  b5 {[%clk 0:01:34]} 17. Rc1 {[%clk 0:02:02]}  b4 {[%clk 0:01:24]} 18. Qd3 {[%clk 0:01:52]}  bxa3 {[%clk 0:01:14]} 19. bxa3 {[%clk 0:01:52]}  Rfb8 {[%clk 0:01:09]} 20. Rc3 {[%clk 0:01:23]}  Rb6 {[%clk 0:01:09]} 21. Rfc1 {[%clk 0:01:23]}  Rab8 {[%clk 0:00:59]} 22. h4 {[%clk 0:01:23]}  a4 {[%clk 0:00:23]} 23. Nh2 {[%clk 0:01:11]}  Rb3 {[%clk 0:00:17]} 24. Ng4 {[%clk 0:01:00]}  Rxc3 {[%clk 0:00:13]} 25. Rxc3 {[%clk 0:00:58]}  h5 {[%clk 0:00:13]} 26. Ne3 {[%clk 0:00:56]}  Na5 {[%clk 0:00:11]} 27. Nc2 {[%clk 0:00:41]}  Nc4 {[%clk 0:00:11]} 28. Bg5 {[%clk 0:00:36]}  Bxg5 {[%clk 0:00:10]} 29. hxg5 {[%clk 0:00:36]}  g6 {[%clk 0:00:09]} 30. Ne3 {[%clk 0:00:30]}  Nxe3+ {[%clk 0:00:07]} 31. Qxe3 {[%clk 0:00:31]}  Qe7 {[%clk 0:00:07]} 32. Qc1 {[%clk 0:00:21]}  Kg7 {[%clk 0:00:06]} 33. Rc7 {[%clk 0:00:21]}  Qd8 {[%clk 0:00:04]} 34. Qc6 {[%clk 0:00:17]}  Rb3 {[%clk 0:00:02]} 35. Rc8 {[%clk 0:00:07]}  Qxg5 {[%clk 0:00:00]} 36. Qe8 {[%clk 0:00:07]} 1-0

[Event "December 12 Early 2023"]
[Site "https://www.chess.com"]
[Date "2023.12.12"]
[Round "10"]
[White "Espinoza Villanueva, Rodrigo"]
[Black "Iljin, Timofey"]
[Result "0-1"]
[Board "79"]
[TimeControl "180+1"]
[WhiteFideId "5140188"]
[BlackFideId "14110180"]
[WhiteElo "2585"]
[BlackElo "2501"]
[WhiteTeam "MEX"]
[BlackTeam "UKR"]
[WhiteClock "0:00:33"]
[BlackClock "0:00:22"]

1. Nf3 {[%clk 0:03:00]}  f5 {[%clk 0:02:57]} 2. g3 {[%clk 0:03:01]}  Nf6 {[%clk 0:02:57]} 3. Bg2 {[%clk 0:03:01]}  g6 {[%clk 0:02:58]} 4. O-O {[%clk 0:03:00]}  Bg7 {[%clk 0:02:59]} 5. c4 {[%clk 0:02:59]}  O-O {[%clk 0:03:00]} 6. b3 {[%clk 0:02:59]}  d6 {[%clk 0:03:01]} 7. d4 {[%clk 0:02:58]}  Qe8 {[%clk 0:03:01]} 8. Bb2 {[%clk 0:02:47]}  Nc6 {[%clk 0:03:00]} 9. d5 {[%clk 0:02:47]}  Nb8 {[%clk 0:02:55]} 10. Nc3 {[%clk 0:02:46]}  a5 {[%clk 0:02:54]} 11. Nb5 {[%clk 0:02:46]}  Na6 {[%clk 0:02:52]} 12. Qc2 {[%clk 0:02:44]}  Bd7 {[%clk 0:02:51]} 13. Nbd4 {[%clk 0:02:43]}  c5 {[%clk 0:02:47]} 14. dxc6 {[%clk 0:02:42]}  bxc6 {[%clk 0:02:48]} 15. Rfd1 {[%clk 0:02:41]}  e5 {[%clk 0:02:43]} 16. Nxc6 {[%clk 0:02:38]}  Bxc6 {[%clk 0:02:42]} 17. Rxd6 {[%clk 0:02:39]}  Be4 {[%clk 0:02:33]} 18. Qc3 {[%clk 0:02:33]}  Bxf3 {[%clk 0:01:36]} 19. Bxf3 {[%clk 0:02:33]}  e4 {[%clk 0:01:35]} 20. Bg2 {[%clk 0:02:27]}  Nh5 {[%clk 0:01:33]} 21. Qc2 {[%clk 0:02:24]}  Nb4 {[%clk 0:01:32]} 22. Qc1 {[%clk 0:02:21]}  Rd8 {[%clk 0:01:24]} 23. Rxd8 {[%clk 0:02:17]}  Qxd8 {[%clk 0:01:25]} 24. Bxg7 {[%clk 0:02:17]}  Nxg7 {[%clk 0:01:24]} 25. a3 {[%clk 0:02:16]}  Nc6 {[%clk 0:01:24]} 26. c5 {[%clk 0:02:14]}  Nd4 {[%clk 0:01:20]} 27. Bf1 {[%clk 0:02:08]}  Kh8 {[%clk 0:01:17]} 28. Qc4 {[%clk 0:02:05]}  f4 {[%clk 0:01:08]} 29. b4 {[%clk 0:02:01]}  axb4 {[%clk 0:01:04]} 30. axb4 {[%clk 0:02:02]}  fxg3 {[%clk 0:01:04]} 31. hxg3 {[%clk 0:01:58]}  Qf6 {[%clk 0:01:02]} 32. Bg2 {[%clk 0:01:12]}  Qxf2+ {[%clk 0:00:52]} 33. Kh1 {[%clk 0:01:10]}  Nxe2 {[%clk 0:00:52]} 34. Rd1 {[%clk 0:01:02]}  Nxg3+ {[%clk 0:00:45]} 35. Kh2 {[%clk 0:01:01]}  Qf4 {[%clk 0:00:35]} 36. Kg1 {[%clk 0:00:52]}  Qe3+ {[%clk 0:00:34]} 37. Kh2 {[%clk 0:00:51]}  Ne2 {[%clk 0:00:23]} 38. Qxe4 {[%clk 0:00:44]}  Qh6+ {[%clk 0:00:23]} 39. Bh3 {[%clk 0:00:41]}  Rf2+ {[%clk 0:00:24]} 40. Qg2 {[%clk 0:00:33]}  Rxg2+ {[%clk 0:00:24]} 41. Kxg2 {[%clk 0:00:33]}  Nf4+ {[%clk 0:00:22]} 0-1

[Event "December 12 Early 2023"]
[Site "https://www.chess.com"]
[Date "2023.12.12"]
[Round "10"]
[White "Shukhman, Anna"]
[Black "Yelisieiev, Yevhenii"]
[Result "0-1"]
[Board "81"]
[TimeControl "180+1"]
[WhiteFideId "54180058"]
[BlackFideId "14139642"]
[WhiteElo "2481"]
[BlackElo "2564"]
[WhiteTeam "FID"]
[BlackTeam "GER"]
[WhiteClock "0:00:00"]
[BlackClock "0:00:12"]

1. e4 {[%clk 0:03:00]}  d6 {[%clk 0:03:00]} 2. d4 {[%clk 0:03:00]}  Nf6 {[%clk 0:03:01]} 3. Nc3 {[%clk 0:03:00]}  e5 {[%clk 0:03:02]} 4. Nf3 {[%clk 0:03:00]}  Nbd7 {[%clk 0:03:02]} 5. a4 {[%clk 0:02:59]}  Be7 {[%clk 0:03:02]} 6. Bc4 {[%clk 0:02:58]}  O-O {[%clk 0:03:01]} 7. O-O {[%clk 0:02:59]}  c6 {[%clk 0:03:01]} 8. Re1 {[%clk 0:02:58]}  a5 {[%clk 0:03:01]} 9. Bg5 {[%clk 0:02:38]}  h6 {[%clk 0:02:58]} 10. Bh4 {[%clk 0:02:38]}  Nh5 {[%clk 0:02:56]} 11. Bxe7 {[%clk 0:02:33]}  Qxe7 {[%clk 0:02:57]} 12. dxe5 {[%clk 0:02:33]}  dxe5 {[%clk 0:02:55]} 13. Ne2 {[%clk 0:02:28]}  Nc5 {[%clk 0:02:51]} 14. Ng3 {[%clk 0:02:19]}  Nxg3 {[%clk 0:02:47]} 15. hxg3 {[%clk 0:02:19]}  Bg4 {[%clk 0:02:47]} 16. Qd2 {[%clk 0:02:16]}  Bxf3 {[%clk 0:02:26]} 17. gxf3 {[%clk 0:02:14]}  Ne6 {[%clk 0:02:25]} 18. Kg2 {[%clk 0:02:04]}  Kh8 {[%clk 0:02:16]} 19. Bxe6 {[%clk 0:02:01]}  fxe6 {[%clk 0:02:15]} 20. Qc3 {[%clk 0:02:00]}  Qg5 {[%clk 0:02:07]} 21. Rad1 {[%clk 0:01:58]}  Rf7 {[%clk 0:02:06]} 22. Rd6 {[%clk 0:01:37]}  Raf8 {[%clk 0:01:58]} 23. Rxe6 {[%clk 0:00:59]}  Rxf3 {[%clk 0:01:57]} 24. Qxf3 {[%clk 0:00:58]}  Rxf3 {[%clk 0:01:57]} 25. Kxf3 {[%clk 0:00:59]}  Qd2 {[%clk 0:01:56]} 26. Re8+ {[%clk 0:00:51]}  Kh7 {[%clk 0:01:56]} 27. Re2 {[%clk 0:00:51]}  Qd4 {[%clk 0:01:37]} 28. b3 {[%clk 0:00:48]}  b5 {[%clk 0:01:36]} 29. axb5 {[%clk 0:00:38]}  cxb5 {[%clk 0:01:36]} 30. Ra8 {[%clk 0:00:36]}  a4 {[%clk 0:01:28]} 31. bxa4 {[%clk 0:00:36]}  bxa4 {[%clk 0:01:28]} 32. Kg2 {[%clk 0:00:36]}  Qc4 {[%clk 0:01:27]} 33. Re3 {[%clk 0:00:31]}  Qxc2 {[%clk 0:01:25]} 34. Kg1 {[%clk 0:00:23]}  h5 {[%clk 0:01:19]} 35. Ra7 {[%clk 0:00:22]}  Kh6 {[%clk 0:01:17]} 36. Ra6+ {[%clk 0:00:20]}  Kg5 {[%clk 0:01:13]} 37. Ra5 {[%clk 0:00:19]}  Kh6 {[%clk 0:01:04]} 38. Ra6+ {[%clk 0:00:08]}  g6 {[%clk 0:01:04]} 39. Kg2 {[%clk 0:00:06]}  h4 {[%clk 0:00:48]} 40. gxh4 {[%clk 0:00:06]}  Kh5 {[%clk 0:00:48]} 41. Ra5 {[%clk 0:00:06]}  Kxh4 {[%clk 0:00:45]} 42. Rxe5 {[%clk 0:00:05]}  Qc7 {[%clk 0:00:38]} 43. Re8 {[%clk 0:00:03]}  Qc6 {[%clk 0:00:24]} 44. Rh8+ {[%clk 0:00:03]}  Kg5 {[%clk 0:00:23]} 45. Rf8 {[%clk 0:00:02]}  Qd6 {[%clk 0:00:14]} 46. Rg3+ {[%clk 0:00:02]}  Kh6 {[%clk 0:00:14]} 47. Ra8 {[%clk 0:00:02]}  Qc6 {[%clk 0:00:14]} 48. Rg8 {[%clk 0:00:01]}  Qxe4+ {[%clk 0:00:14]} 49. Kh2 {[%clk 0:00:01]}  Kh7 {[%clk 0:00:12]} 50. R8xg6 {[%clk 0:00:00]}  Qxg6 {[%clk 0:00:12]} 0-1

[Event "December 12 Early 2023"]
[Site "https://www.chess.com"]
[Date "2023.12.12"]
[Round "10"]
[White "Kotlyar, Kirill"]
[Black "Skibbe, Willi"]
[Result "0-1"]
[Board "84"]
[TimeControl "180+1"]
[WhiteFideId "24145599"]
[BlackFideId "4682190"]
[WhiteElo "2552"]
[BlackElo "2318"]
[WhiteTeam "RUS"]
[BlackTeam "GER"]
[WhiteClock "0:00:16"]
[BlackClock "0:00:29"]

1. e4 {[%clk 0:03:00]}  e6 {[%clk 0:03:00]} 2. Nf3 {[%clk 0:02:58]}  d5 {[%clk 0:03:00]} 3. Nc3 {[%clk 0:02:57]}  Nf6 {[%clk 0:02:59]} 4. e5 {[%clk 0:02:58]}  Nfd7 {[%clk 0:03:00]} 5. d4 {[%clk 0:02:59]}  c5 {[%clk 0:03:00]} 6. dxc5 {[%clk 0:03:00]}  Nc6 {[%clk 0:03:01]} 7. Bf4 {[%clk 0:03:00]}  Nxc5 {[%clk 0:03:00]} 8. Bb5 {[%clk 0:03:00]}  Be7 {[%clk 0:03:00]} 9. h4 {[%clk 0:02:59]}  Bd7 {[%clk 0:02:51]} 10. Rh3 {[%clk 0:02:56]}  a6 {[%clk 0:02:49]} 11. Bxc6 {[%clk 0:02:47]}  Bxc6 {[%clk 0:02:50]} 12. Rg3 {[%clk 0:02:48]}  g6 {[%clk 0:02:40]} 13. h5 {[%clk 0:02:47]}  Qb6 {[%clk 0:02:35]} 14. Rb1 {[%clk 0:02:34]}  Ne4 {[%clk 0:02:34]} 15. Nxe4 {[%clk 0:02:21]}  dxe4 {[%clk 0:02:35]} 16. Nd2 {[%clk 0:02:21]}  Rd8 {[%clk 0:02:27]} 17. a3 {[%clk 0:02:08]}  O-O {[%clk 0:01:46]} 18. hxg6 {[%clk 0:02:00]}  fxg6 {[%clk 0:01:45]} 19. Be3 {[%clk 0:02:01]}  Bc5 {[%clk 0:01:42]} 20. Qg4 {[%clk 0:01:54]}  Rf5 {[%clk 0:01:34]} 21. Rh3 {[%clk 0:01:30]}  Bxe3 {[%clk 0:01:31]} 22. Rxe3 {[%clk 0:01:26]}  Qd4 {[%clk 0:01:17]} 23. Rd1 {[%clk 0:01:10]}  Qxb2 {[%clk 0:01:15]} 24. Qh4 {[%clk 0:01:10]}  Rdf8 {[%clk 0:01:08]} 25. Rh3 {[%clk 0:00:55]}  R5f7 {[%clk 0:01:09]} 26. Nc4 {[%clk 0:00:47]}  Qxc2 {[%clk 0:01:05]} 27. Nd6 {[%clk 0:00:21]}  Qxf2+ {[%clk 0:00:27]} 28. Qxf2 {[%clk 0:00:22]}  Rxf2 {[%clk 0:00:28]} 29. Rb1 {[%clk 0:00:22]}  Rf1+ {[%clk 0:00:28]} 30. Kd2 {[%clk 0:00:16]}  Rxb1 {[%clk 0:00:29]} 0-1

[Event "December 12 Early 2023"]
[Site "https://www.chess.com"]
[Date "2023.12.12"]
[Round "10"]
[White "Wu, Derek"]
[Black "Garrido, Denis"]
[Result "1-0"]
[Board "86"]
[TimeControl "180+1"]
[WhiteFideId "30914558"]
[BlackFideId "601217"]
[WhiteElo "2675"]
[BlackElo "2431"]
[WhiteTeam "USA"]
[BlackTeam "FRA"]
[WhiteClock "0:00:34"]
[BlackClock "0:00:10"]

1. e4 {[%clk 0:03:00]}  e6 {[%clk 0:02:55]} 2. d4 {[%clk 0:03:00]}  c5 {[%clk 0:02:55]} 3. Nf3 {[%clk 0:02:59]}  cxd4 {[%clk 0:02:55]} 4. Nxd4 {[%clk 0:03:00]}  Nf6 {[%clk 0:02:55]} 5. Nc3 {[%clk 0:03:00]}  d6 {[%clk 0:02:56]} 6. g4 {[%clk 0:02:59]}  a6 {[%clk 0:02:55]} 7. g5 {[%clk 0:02:57]}  Nfd7 {[%clk 0:02:56]} 8. Be3 {[%clk 0:02:56]}  b5 {[%clk 0:02:56]} 9. a3 {[%clk 0:02:55]}  Bb7 {[%clk 0:02:56]} 10. h4 {[%clk 0:02:53]}  Nc5 {[%clk 0:02:47]} 11. Bg2 {[%clk 0:02:52]}  Nc6 {[%clk 0:02:48]} 12. Qe2 {[%clk 0:02:49]}  Rc8 {[%clk 0:02:42]} 13. Nxc6 {[%clk 0:02:43]}  Bxc6 {[%clk 0:02:40]} 14. O-O-O {[%clk 0:02:43]}  Qc7 {[%clk 0:02:38]} 15. h5 {[%clk 0:02:40]}  Qb7 {[%clk 0:02:36]} 16. Bxc5 {[%clk 0:02:29]}  dxc5 {[%clk 0:02:34]} 17. g6 {[%clk 0:02:28]}  b4 {[%clk 0:02:29]} 18. gxf7+ {[%clk 0:02:24]}  Qxf7 {[%clk 0:02:16]} 19. axb4 {[%clk 0:02:05]}  cxb4 {[%clk 0:02:16]} 20. Nd5 {[%clk 0:01:51]}  Bc5 {[%clk 0:01:48]} 21. h6 {[%clk 0:01:19]}  g6 {[%clk 0:01:16]} 22. Rh3 {[%clk 0:01:05]}  O-O {[%clk 0:01:10]} 23. Rf3 {[%clk 0:01:04]}  exd5 {[%clk 0:01:04]} 24. Rxf7 {[%clk 0:01:03]}  Rxf7 {[%clk 0:01:04]} 25. exd5 {[%clk 0:01:03]}  Bb5 {[%clk 0:00:56]} 26. Qe6 {[%clk 0:01:01]}  Re8 {[%clk 0:00:56]} 27. Qg4 {[%clk 0:00:54]}  Rxf2 {[%clk 0:00:43]} 28. d6 {[%clk 0:00:51]}  Bxd6 {[%clk 0:00:27]} 29. Rxd6 {[%clk 0:00:48]}  Re1+ {[%clk 0:00:16]} 30. Rd1 {[%clk 0:00:44]}  Ree2 {[%clk 0:00:14]} 31. Bd5+ {[%clk 0:00:42]}  Kf8 {[%clk 0:00:14]} 32. Qc8+ {[%clk 0:00:42]}  Ke7 {[%clk 0:00:13]} 33. Qc7+ {[%clk 0:00:41]}  Kf6 {[%clk 0:00:13]} 34. Qg7+ {[%clk 0:00:40]}  Kg5 {[%clk 0:00:13]} 35. Rg1+ {[%clk 0:00:40]}  Kf4 {[%clk 0:00:12]} 36. Qf6+ {[%clk 0:00:34]}  Ke3 {[%clk 0:00:10]} 37. Rg3+ {[%clk 0:00:34]} 1-0

[Event "December 12 Early 2023"]
[Site "https://www.chess.com"]
[Date "2023.12.12"]
[Round "10"]
[White "Rios Escobar, Adan"]
[Black "Khamdamova, Afruza"]
[Result "0-1"]
[Board "88"]
[TimeControl "180+1"]
[WhiteFideId "3403645"]
[BlackFideId "14210444"]
[WhiteElo "2424"]
[BlackElo "2529"]
[WhiteTeam "CHI"]
[BlackTeam "UZB"]
[WhiteClock "0:00:00"]
[BlackClock "0:01:41"]

1. Nf3 {[%clk 0:03:00]}  d5 {[%clk 0:02:59]} 2. e3 {[%clk 0:02:59]}  Nf6 {[%clk 0:02:59]} 3. c4 {[%clk 0:02:59]}  e6 {[%clk 0:02:56]} 4. Nc3 {[%clk 0:02:59]}  c5 {[%clk 0:02:57]} 5. cxd5 {[%clk 0:02:58]}  exd5 {[%clk 0:02:57]} 6. d4 {[%clk 0:02:58]}  c4 {[%clk 0:02:57]} 7. Be2 {[%clk 0:02:44]}  Nc6 {[%clk 0:02:57]} 8. O-O {[%clk 0:02:44]}  Be7 {[%clk 0:02:57]} 9. b3 {[%clk 0:02:45]}  cxb3 {[%clk 0:02:55]} 10. Qxb3 {[%clk 0:02:41]}  O-O {[%clk 0:02:55]} 11. Ne5 {[%clk 0:02:22]}  Na5 {[%clk 0:02:42]} 12. Qc2 {[%clk 0:02:14]}  Be6 {[%clk 0:02:37]} 13. Bd2 {[%clk 0:02:14]}  Rc8 {[%clk 0:02:37]} 14. Rfc1 {[%clk 0:02:12]}  a6 {[%clk 0:02:34]} 15. Qd1 {[%clk 0:02:08]}  b5 {[%clk 0:02:34]} 16. Be1 {[%clk 0:02:08]}  Nc4 {[%clk 0:02:32]} 17. Nxc4 {[%clk 0:01:32]}  bxc4 {[%clk 0:02:32]} 18. Rcb1 {[%clk 0:01:28]}  Qc7 {[%clk 0:02:25]} 19. Bf3 {[%clk 0:01:18]}  Bd6 {[%clk 0:02:24]} 20. g3 {[%clk 0:01:18]}  Rb8 {[%clk 0:02:22]} 21. h4 {[%clk 0:01:01]}  h6 {[%clk 0:02:22]} 22. e4 {[%clk 0:00:50]}  dxe4 {[%clk 0:02:19]} 23. Nxe4 {[%clk 0:00:51]}  Nxe4 {[%clk 0:02:16]} 24. Bxe4 {[%clk 0:00:52]}  Rxb1 {[%clk 0:02:07]} 25. Rxb1 {[%clk 0:00:51]}  Rb8 {[%clk 0:02:07]} 26. Qf3 {[%clk 0:00:46]}  Rxb1 {[%clk 0:02:00]} 27. Bxb1 {[%clk 0:00:46]}  Qb8 {[%clk 0:01:55]} 28. Qe4 {[%clk 0:00:45]}  g6 {[%clk 0:01:53]} 29. g4 {[%clk 0:00:39]}  Bxg4 {[%clk 0:01:48]} 30. Qxg4 {[%clk 0:00:11]}  Qxb1 {[%clk 0:01:48]} 31. Qc8+ {[%clk 0:00:07]}  Kg7 {[%clk 0:01:47]} 32. Qe8 {[%clk 0:00:04]}  Bb4 {[%clk 0:01:45]} 33. Qe5+ {[%clk 0:00:03]}  Kh7 {[%clk 0:01:44]} 34. Kf1 {[%clk 0:00:02]}  Bxe1 {[%clk 0:01:39]} 35. Qxe1 {[%clk 0:00:02]}  Qd3+ {[%clk 0:01:40]} 36. Kg1 {[%clk 0:00:01]}  Qxd4 {[%clk 0:01:40]} 37. Qe7 {[%clk 0:00:00]}  Kg7 {[%clk 0:01:41]} 0-1

[Event "December 12 Early 2023"]
[Site "https://www.chess.com"]
[Date "2023.12.12"]
[Round "10"]
[White "Yashmetov, Mikhail"]
[Black "Marchesich, Giovanni"]
[Result "1-0"]
[Board "89"]
[TimeControl "180+1"]
[WhiteFideId "24198900"]
[BlackFideId "2824790"]
[WhiteElo "2499"]
[BlackElo "2422"]
[WhiteTeam "RUS"]
[BlackTeam "ITA"]
[WhiteClock "0:01:36"]
[BlackClock "0:01:17"]

1. f4 {[%clk 0:02:59]}  g6 {[%clk 0:02:58]} 2. Nf3 {[%clk 0:03:00]}  Nh6 {[%clk 0:02:57]} 3. e4 {[%clk 0:03:00]}  f6 {[%clk 0:02:58]} 4. g3 {[%clk 0:03:00]}  Nf7 {[%clk 0:02:58]} 5. Bg2 {[%clk 0:03:01]}  Bg7 {[%clk 0:02:58]} 6. O-O {[%clk 0:03:01]}  O-O {[%clk 0:02:59]} 7. d4 {[%clk 0:03:02]}  d6 {[%clk 0:02:59]} 8. Nc3 {[%clk 0:03:00]}  c6 {[%clk 0:02:59]} 9. Re1 {[%clk 0:03:01]}  Na6 {[%clk 0:03:00]} 10. b3 {[%clk 0:03:01]}  Nc7 {[%clk 0:03:00]} 11. Bb2 {[%clk 0:03:00]}  e5 {[%clk 0:03:00]} 12. Qd2 {[%clk 0:03:00]}  Bg4 {[%clk 0:02:58]} 13. Rad1 {[%clk 0:02:59]}  Qe7 {[%clk 0:02:58]} 14. h3 {[%clk 0:02:59]}  Be6 {[%clk 0:02:57]} 15. Ne2 {[%clk 0:02:56]}  Rad8 {[%clk 0:02:57]} 16. Qe3 {[%clk 0:02:56]}  b6 {[%clk 0:02:57]} 17. c4 {[%clk 0:02:56]}  h6 {[%clk 0:02:55]} 18. Qf2 {[%clk 0:02:55]}  Bc8 {[%clk 0:02:55]} 19. g4 {[%clk 0:02:55]}  Ne6 {[%clk 0:02:42]} 20. Nh4 {[%clk 0:02:54]}  Nh8 {[%clk 0:02:38]} 21. f5 {[%clk 0:02:38]}  Ng5 {[%clk 0:02:25]} 22. fxg6 {[%clk 0:02:36]}  Qe8 {[%clk 0:02:22]} 23. Ng3 {[%clk 0:02:25]}  Nxg6 {[%clk 0:02:21]} 24. Nxg6 {[%clk 0:02:26]}  Qxg6 {[%clk 0:02:21]} 25. Nf5 {[%clk 0:02:27]}  h5 {[%clk 0:02:18]} 26. Ne7+ {[%clk 0:02:25]}  Kh7 {[%clk 0:02:14]} 27. Nxg6 {[%clk 0:02:26]}  Kxg6 {[%clk 0:02:14]} 28. dxe5 {[%clk 0:02:24]}  fxe5 {[%clk 0:02:14]} 29. Qe3 {[%clk 0:02:20]}  h4 {[%clk 0:02:14]} 30. Rf1 {[%clk 0:02:20]}  Ne6 {[%clk 0:02:14]} 31. Rf5 {[%clk 0:02:20]}  Bh6 {[%clk 0:02:14]} 32. Qf2 {[%clk 0:02:20]}  Nf4 {[%clk 0:02:12]} 33. Bf1 {[%clk 0:02:18]}  Bxf5 {[%clk 0:02:08]} 34. exf5+ {[%clk 0:02:18]}  Kf6 {[%clk 0:02:07]} 35. Qe3 {[%clk 0:02:11]}  Rfe8 {[%clk 0:02:03]} 36. Qe4 {[%clk 0:02:04]}  d5 {[%clk 0:01:59]} 37. Qe1 {[%clk 0:02:01]}  Bg5 {[%clk 0:01:59]} 38. cxd5 {[%clk 0:01:58]}  cxd5 {[%clk 0:01:59]} 39. Rc1 {[%clk 0:01:51]}  Rd6 {[%clk 0:01:53]} 40. Rc7 {[%clk 0:01:50]}  d4 {[%clk 0:01:52]} 41. Ba3 {[%clk 0:01:49]}  Rdd8 {[%clk 0:01:46]} 42. Qe4 {[%clk 0:01:45]}  d3 {[%clk 0:01:45]} 43. Qc6+ {[%clk 0:01:43]}  Ne6 {[%clk 0:01:42]} 44. Bxd3 {[%clk 0:01:40]}  Rxd3 {[%clk 0:01:40]} 45. Qxe8 {[%clk 0:01:40]}  Rd1+ {[%clk 0:01:34]} 46. Kf2 {[%clk 0:01:38]}  Nxc7 {[%clk 0:01:17]} 47. Qe7# {[%clk 0:01:36]} 1-0